[Event "German Bundesliga 2021-22"]
[Site "Germany"]
[Date "2022.04.09"]
[Round "3.4"]
[White "Horvath, Dominik"]
[Black "Van Wely, Loek"]
[Result "0-1"]
[ECO "B07"]
[WhiteElo "2483"]
[BlackElo "2612"]
[Annotator "TA"]
[PlyCount "106"]
[EventDate "2022.03.05"]
[EventType "team-tourn"]
[EventCountry "GER"]
[SourceTitle "playchess.com"]
[Source "ChessBase"]
[SourceQuality "1"]
[TimeControl "40/5400+30:1800+30"]

{[%evp 14,106,10,11,55,7,15,7,6,0,13,-2,27,28,20,8,-6,-23,-18,-41,-18,-46,-25,-27,-20,-26,-15,-21,0,0,0,0,0,0,0,0,0,0,0,-11,-12,-371,-378,-379,-122,-108,-114,-120,-110,-135,-48,-61,-54,-59,-47,-61,-39,-127,-129,-141,-154,-152,-154,-135,-135,-130,-18,-23,0,-119,-32,-720,-703,-689,-680,-7424,-7264,-6858,-6710,-6564,-6557,-6535,-6466,-6411,-5410,-29986,-643,-637,-613,-594,-577,-542,-525,-29983,-29984]} 1. e4 {[%emt 0:00:00]} d6 {[%emt 0:00:00]} 2. d4 {[%emt 0:00:00]} Nf6 {[%emt 0:00:00]} 3. Nc3 {[%emt 0:00:00]} g6 {[%emt 0:00:00]} 4. Be3 {[%emt 0:00:00]} Bg7 {[%emt 0:00:00]} 5. f3 {[%emt 0:00:00]} c6 {[%emt 0:00:00]} 6. Qd2 {[%emt 0:00:07]} b5 {[%emt 0:00:00]} 7. Bh6 {[%emt 0:05:19]} Bxh6 {[%emt 0:00:51]} 8. Qxh6 {[%emt 0:00:14]} b4 {[%emt 0:02:34] B07: Pirc Defence: Miscellaneous Systems.} 9. Nd1 {[%emt 0:05:03]} (9. Na4 $1 $14 {is more appropriate.}) 9... Qb6 $11 {[%emt 0:01:59] has lost popularity (9...Qa5).} 10. Qd2 {[%emt 0:09:01]} a5 {[%emt 0:04:00] The position is equal.} 11. Ne3 {[%emt 0:00:13]} Nbd7 {[%emt 0:02:10] [#]} 12. g4 $146 {[%emt 0:02:52]} ({Predecessor:} 12. Bc4 c5 13. c3 Ba6 14. Bxa6 Qxa6 15. Ne2 Rb8 16. O-O O-O 17. Nf4 e6 18. dxc5 dxc5 {1-0 (44) Duong,T (2403)-Hendriks,W (2411) Budapest 2008}) 12... h6 {[%emt 0:09:39]} 13. h4 {[%emt 0:00:49]} c5 {[%emt 0:11:56]} 14. d5 {[%emt 0:07:49]} Ne5 {[%emt 0:02:28]} 15. Nc4 {[%emt 0:09:33]} Nxc4 {[%emt 0:00:39]} 16. Bxc4 {[%emt 0:00:04]} Nd7 {[%emt 0:20:02]} 17. f4 {[%emt 0:10:55]} Nf6 {[%emt 0:01:40][%csl LRe4,LRg4][%cal Bd7f6,Bf6e4,Be4c3][%mdl 32]} 18. g5 {[%emt 0:10:46]} Nxe4 {[%emt 0:08:56]} 19. Qg2 {[%emt 0:03:17]} Bf5 {[%emt 0:01:47] Threatens to win with ...a4.} 20. Ne2 $1 {[%emt 0:07:56] Hoping for Bd3.} (20. Bd3 $2 c4 $1 21. Bxe4 Qe3+ 22. Qe2 Qxe4 23. Qxe4 Bxe4 $19) 20... a4 {[%emt 0:03:43] And now ...Qa5 would win.} (20... b3 $5 21. axb3 a4 $15) 21. Bd3 {[%emt 0:02:37]} a3 $36 {[%emt 0:00:16][%mdl 2048] Black has some pressure.} 22. b3 {[%emt 0:08:04]} Nc3 {[%emt 0:00:16]} 23. Bxf5 {[%emt 0:00:07]} gxf5 {[%emt 0:01:29]} 24. Nxc3 {[%emt 0:00:10]} bxc3 {[%emt 0:00:06]} 25. O-O-O {[%emt 0:05:53] aiming for Qh3.} c4 {[%emt 0:13:00][%cal Bc5c4,Bc4b3,Bb3c2][%mdl 32]} 26. Qf3 {[%emt 0:04:48]} cxb3 {[%emt 0:00:16]} 27. Qxc3 {[%emt 0:00:31][%mdl 8192] [#]} (27. cxb3 $11 {and White is okay.} Rc8 28. Kc2) 27... bxc2 $1 $19 {[%emt 0:01:04] Really sharp!} 28. Rde1 {[%emt 0:05:42]} (28. Qxh8+ $2 {loses.} Kd7 29. Qc3 cxd1=Q+ 30. Rxd1 Rc8 31. Qxc8+ Kxc8 $19) 28... Qb2+ $2 {[%emt 0:06:55]} (28... Qb1+ $19 {and Black stays clearly on top.} 29. Kd2 c1=B+ 30. Rxc1 Qxa2+ 31. Ke3 O-O 32. gxh6 f6) 29. Qxb2 $17 {[%emt 0:00:07]} axb2+ {[%emt 0:00:04][%mdl 64] Discovered Attack} 30. Kxb2 {[%emt 0:00:18][%mdl 4096] Endgame KRR-KRR} Kd7 {[%emt 0:00:45]} 31. Rh3 {[%emt 0:00:11]} Ra7 {[%emt 0:03:21]} ({Black should play} 31... h5 $17 32. Rhe3 Rhb8+ 33. Kxc2 Rxa2+ 34. Kc1 Ra1+ 35. Kc2 Rxe1 36. Rxe1 Rb5) 32. Rhe3 {[%emt 0:01:06]} Rb8+ {[%emt 0:00:49]} 33. Rb3 $1 {[%emt 0:01:07]} Rba8 {[%emt 0:00:13]} 34. a3 {[%emt 0:00:14]} hxg5 {[%emt 0:00:27]} (34... Rc7 $5 {[%cal Rh6g5]}) 35. hxg5 {[%emt 0:01:42]} ({White should try} 35. fxg5 $15 Rc7 36. Kc1) 35... Rc7 {[%emt 0:00:50]} 36. Rc1 {[%emt 0:01:22]} Rac8 $1 {[%emt 0:02:44]} 37. a4 {[%emt 0:00:17]} Rc5 {[%emt 0:00:14]} 38. Rb7+ {[%emt 0:00:43]} Kd8 {[%emt 0:00:21]} 39. Kb3 {[%emt 0:00:32]} Rc3+ {[%emt 0:02:41]} (39... Rxd5 40. Rxc2 Rd3+ 41. Kb2 Rxc2+ 42. Kxc2 $15) (39... R8c7 $1 $17 {[%cal Rc7b7]} 40. Rb8+ (40. Rxc7 $2 Kxc7 41. Kb4 Kb6 $19) 40... Kd7) 40. Kb2 $11 {[%emt 0:00:07]} R3c5 {[%emt 0:00:51]} (40... R3c4 $11) 41. Kb3 $1 $17 {[%emt 0:30:04]} Ke8 {[%emt 0:00:00]} ({Inferior is} 41... Rxd5 42. Rxc2 Rd3+ 43. Kb2 Rxc2+ 44. Kxc2 $15) (41... R8c7 $1 $17 {[%cal Rc7b7]} 42. Rb4 (42. Rxc7 Kxc7 43. Ka3 Kb6 $19) 42... Kd7) 42. Rb5 {[%emt 0:00:00][%mdl 8192] [#]} (42. a5 $15) 42... Rxb5+ $1 $19 {[%emt 0:00:00]} 43. axb5 {[%emt 0:00:00] [#] KR-KR} Rc5 $1 {[%emt 0:00:00][%csl LRb5,LRd5]} 44. Kb4 {[%emt 0:00:00]} Kd7 {[%emt 0:00:00]} 45. Ka5 {[%emt 0:00:00]} Kc7 {[%emt 0:00:00]} 46. Ka6 {[%emt 0:00:00]} Rc3 {[%emt 0:00:19][%cal Rc3a3]} 47. b6+ {[%emt 0:00:00]} Kb8 {[%emt 0:00:05]} 48. b7 {[%emt 0:00:00]} Kc7 {[%emt 0:01:13]} 49. Re1 {[%emt 0:00:00]} Ra3+ {[%emt 0:00:23]} (49... c1=Q $142 50. Rxe7+ Kd8 51. Re8+ Kxe8 52. b8=Q+ Ke7 53. Qb5 Ra3+ 54. Kb7 Qc3 55. Qb6 Rb3 56. Qxb3 Qxb3+ 57. Kc7 Qc4+ 58. Kb6 Qc5+ 59. Ka6 Kd7 60. Kb7 Qb5+ 61. Ka8 Kc7 62. Ka7 Qb7#) 50. Kb5 {[%emt 0:00:00]} Rb3+ {[%emt 0:00:13]} 51. Ka6 {[%emt 0:00:00]} Rb6+ {[%emt 0:00:43]} 52. Ka5 {[%emt 0:00:00]} Rxb7 {[%emt 0:01:43] ( -> ...Rb1)} 53. Rxe7+ {[%emt 0:00:00]} Kc8 {[%emt 0:00:12] Weighted Error Value: White=0.81/Black=0.34} 0-1

[Event "German Bundesliga 2021-22"]
[Site "Germany"]
[Date "2022.04.09"]
[Round "3.4"]
[White "Mueller, Nick"]
[Black "Khenkin, Igor"]
[Result "1/2-1/2"]
[ECO "D02"]
[WhiteElo "2375"]
[BlackElo "2509"]
[Annotator "TA"]
[PlyCount "53"]
[EventDate "2022.03.05"]
[EventType "team-tourn"]
[EventCountry "GER"]
[SourceTitle "playchess.com"]
[Source "ChessBase"]
[SourceQuality "1"]
[TimeControl "40/5400+30:1800+30"]

{[%evp 9,53,21,20,0,0,0,0,0,0,-7,-8,-6,-8,-21,-12,-14,-13,-26,-15,-14,0,0,0,0,0,0,39,30,25,27,125,130,130,127,116,120,150,151,159,66,77,41,75,70,70,63]} 1. d4 {[%emt 0:00:00]} d5 {[%emt 0:00:00]} 2. Nf3 {[%emt 0:00:00]} c6 {[%emt 0:00:00]} 3. Bf4 {[%emt 0:00:00]} Bf5 {[%emt 0:00:00]} 4. e3 {[%emt 0:00:00]} e6 {[%emt 0:00:00]} 5. c4 {[%emt 0:00:00]} Bd6 {[%emt 0:03:59]} 6. Bg3 {[%emt 0:14:07] D02: 1 d4 d5 2 Nf3 sidelines, including 2...Nf6 3 g3 and 2...Nf6 3 Bf4.} Bxg3 {[%emt 0:02:14]} 7. hxg3 {[%emt 0:00:10]} Nd7 {[%emt 0:11:49]} 8. Nc3 {[%emt 0:02:24] The position is equal.} h6 {[%emt 0:00:49]} 9. Bd3 {[%emt 0:04:28]} Bxd3 {[%emt 0:03:33]} 10. Qxd3 {[%emt 0:00:09]} Ngf6 {[%emt 0:00:08] [#]} 11. b4 $146 {[%emt 0:10:54]} ({Predecessor:} 11. O-O O-O 12. Rfe1 Qc7 13. b4 Rfe8 14. Rac1 e5 15. Nd2 dxc4 16. Nxc4 Rad8 17. Red1 {1-0 (65) Ali Marandi,C (2543)-Daggupati,B (2389) Philadelphia 2021}) 11... Qe7 {[%emt 0:07:30]} 12. Rb1 {[%emt 0:07:17]} O-O {[%emt 0:07:44]} 13. O-O {[%emt 0:02:38]} dxc4 {[%emt 0:10:19]} 14. Qxc4 {[%emt 0:00:11]} e5 {[%emt 0:00:04]} 15. dxe5 {[%emt 0:07:26]} Nxe5 {[%emt 0:00:03]} 16. Qc5 {[%emt 0:00:22]} Rfe8 {[%emt 0:13:24]} 17. Rfd1 {[%emt 0:03:53]} Nxf3+ {[%emt 0:15:22]} 18. gxf3 {[%emt 0:00:10]} Qxc5 {[%emt 0:00:04]} 19. bxc5 {[%emt 0:00:08]} Re5 {[%emt 0:00:02]} (19... Rab8 $11 {keeps the balance.}) 20. Rxb7 $16 {[%emt 0:04:22]} Rxc5 {[%emt 0:00:02]} 21. Ne4 {[%emt 0:06:23] &Bianco is more active.} Nxe4 {[%emt 0:09:54]} 22. fxe4 {[%emt 0:01:15] KRR-KRR} Re5 {[%emt 0:00:10]} 23. Rdd7 {[%emt 0:00:40][%csl LRa7,LRf7]} Rf8 {[%emt 0:00:37]} 24. f3 {[%emt 0:02:44]} (24. Rxa7 $16 Rxe4 25. Kf1) 24... a5 {[%emt 0:00:06]} 25. a4 {[%emt 0:04:04]} g5 {[%emt 0:01:29][%cal Og5g4]} 26. g4 {[%emt 0:02:07][%cal Bg3g4,Bg4h5][%mdl 32]} h5 {[%emt 0:02:27]} 27. gxh5 {[%emt 0:01:43] Weighted Error Value: White=0.13 (very precise) /Black=0.14 (very precise)} 1/2-1/2

[Event "German Bundesliga 2021-22"]
[Site "Germany"]
[Date "2022.04.09"]
[Round "3.4"]
[White "Lemmers, Oscar"]
[Black "Naiditsch, Arkadij"]
[Result "0-1"]
[ECO "C25"]
[WhiteElo "2346"]
[BlackElo "2648"]
[Annotator "TA"]
[PlyCount "70"]
[EventDate "2022.03.05"]
[EventType "team-tourn"]
[EventCountry "GER"]
[SourceTitle "playchess.com"]
[Source "ChessBase"]
[SourceQuality "1"]
[TimeControl "40/5400+30:1800+30"]

{[%evp 9,70,75,79,59,56,26,70,25,18,20,20,-6,0,-60,-58,-44,-51,-58,-24,-39,-20,-25,-22,-46,-27,-39,0,-42,-41,-194,-180,-183,-189,-173,-134,-128,-139,-133,-152,-154,-147,-214,-140,-202,-194,-200,-205,-206,-207,-214,-208,-254,-270,-261,-250,-263,-258,-359,-353,-702,-413,-29990,-29991]} 1. e4 {[%emt 0:00:00]} e5 {[%emt 0:00:00]} 2. Nc3 {[%emt 0:00:00]} Nc6 {[%emt 0:00:00]} 3. f4 {[%emt 0:00:00]} exf4 {[%emt 0:00:00]} 4. d4 {[%emt 0:00:00]} g5 {[%emt 0:01:53]} 5. h4 {[%emt 0:00:25]} Bg7 {[%emt 0:00:22]} 6. hxg5 {[%emt 0:00:57] [#] Nf3 is the strong threat. C25: Vienna Game: Alternatives to 2...Nf6.} Nxd4 $146 {[%emt 0:05:30]} ({Predecessor:} 6... Qxg5 7. Nge2 Qa5 8. Bd2 Qb4 9. Nd5 Qxb2 10. Nxc7+ Kd8 11. Bc3 Qa3 12. Nxa8 d6 {1-0 (19) Tokarev,E (1530)-Gyongyosi,P (914) LSS email 2010}) 7. Nh3 {[%emt 0:05:32]} Ne6 {[%emt 0:07:43]} 8. Bc4 {[%emt 0:08:26] White is slightly better.} d6 {[%emt 0:07:22]} 9. Qh5 {[%emt 0:06:01]} Ne7 $1 10. Bxf4 {[%cal Oe4e5]} Ng6 {[%emt 0:09:07] Against e5} 11. Bh2 {[%emt 0:16:46]} (11. Be3 $11) 11... h6 $15 {[%emt 0:07:23]} 12. gxh6 {[%emt 0:03:38]} Rxh6 {[%emt 0:01:08]} 13. Qf3 {[%emt 0:03:57]} Ne5 {[%emt 0:22:08]} 14. Bxe5 {[%emt 0:02:10]} Bxe5 {[%emt 0:03:37]} 15. O-O-O {[%emt 0:13:12]} ({But not} 15. O-O $2 Bd4+ 16. Rf2 Bxf2+ 17. Qxf2 Qh4 $19) 15... c6 {[%emt 0:00:52] Inhibits Nd5.} 16. Rhf1 {[%emt 0:02:56][%csl Gf1][%cal Rf3f7]} Qe7 {[%emt 0:04:24]} 17. Ne2 {[%emt 0:09:46]} Bd7 {[%emt 0:01:04]} 18. Ng3 {[%emt 0:00:49] And now Nf5 would win.} Ng5 {[%emt 0:07:53]} 19. Qe3 {[%emt 0:06:48] This move loses the game for White.} (19. Nxg5 $15 Qxg5+ 20. Kb1) 19... Bxh3 $19 {[%emt 0:02:19]} 20. gxh3 {[%emt 0:02:14]} Rxh3 {[%emt 0:00:19]} 21. Rg1 {[%emt 0:00:42]} d5 {[%emt 0:07:05]} 22. Bf1 {[%emt 0:03:23]} Rxg3 {[%emt 0:02:59] &Nero is more active.} 23. Rxg3 {[%emt 0:00:09]} Bxg3 {[%emt 0:00:06]} 24. Qxg3 {[%emt 0:00:05]} Nxe4 {[%emt 0:01:17]} 25. Qh3 {[%emt 0:04:08]} (25. Qg8+ $17 Qf8 26. Qg4) 25... Rd8 {[%emt 0:02:53]} 26. Re1 {[%emt 0:02:33] [#]} (26. Bd3 $17) 26... Rd6 $1 {[%emt 0:01:56]} ({Worse is} 26... Qe5 27. Bd3 $17) 27. Bd3 {[%emt 0:04:11]} Re6 {[%emt 0:01:21]} 28. Rg1 {[%emt 0:00:26]} Kd8 {[%emt 0:01:28]} 29. Qh2 {[%emt 0:01:02]} Nd6 {[%emt 0:00:42] ( -> ...Re1+)} 30. b3 {[%emt 0:01:35]} Re1+ {[%emt 0:00:42]} 31. Rxe1 {[%emt 0:00:05]} Qxe1+ {[%emt 0:00:03]} 32. Kb2 {[%emt 0:00:05]} Kc7 {[%emt 0:00:35]} 33. c4 {[%emt 0:01:52]} d4 {[%emt 0:00:46][%cal Bd5d4,Bd4d3][%mdl 32] Threatens to win with ...Qc3+.} 34. Bh7 $2 {[%emt 0:01:34]} (34. Qc2) 34... c5 {[%emt 0:00:33] Hoping for ...Qc3+.} 35. Bg8 {[%emt 0:00:44] [#]} (35. Qc2 $19) 35... d3 {[%emt 0:00:52] Weighted Error Value: White=0.70/Black=0.17 (very precise)} 0-1

[Event "German Bundesliga 2021-22"]
[Site "Germany"]
[Date "2022.04.09"]
[Round "3.5"]
[White "Gustafsson, Jan"]
[Black "Klein, Felix"]
[Result "1-0"]
[ECO "D31"]
[WhiteElo "2643"]
[BlackElo "2288"]
[Annotator "TA"]
[PlyCount "73"]
[EventDate "2022.03.05"]
[EventType "team-tourn"]
[EventCountry "GER"]
[SourceTitle "playchess.com"]
[Source "ChessBase"]
[SourceQuality "1"]
[TimeControl "40/5400+30:1800+30"]

{[%evp 10,72,35,-13,-4,-30,-19,-50,-48,-100,-50,-18,0,-7,0,-26,93,90,93,89,111,92,76,32,288,279,260,262,266,314,288,287,285,289,298,278,278,287,295,155,207,203,171,156,458,442,420,267,356,0,373,0,369,304,633,620,596,588,6116,5743,29984,29985,29992,29993,29999]} 1. d4 {[%emt 0:00:00]} d5 {[%emt 0:00:00]} 2. c4 {[%emt 0:00:00]} e6 {[%emt 0:00:00]} 3. Nc3 {[%emt 0:00:00]} c6 {[%emt 0:00:00]} 4. e3 {[%emt 0:00:00]} Bd6 {[%emt 0:00:00]} 5. Bd3 {[%emt 0:00:00]} f5 {[%emt 0:00:00]} 6. g4 {[%emt 0:00:00]} (6. b3 $14) 6... Nf6 $11 {[%emt 0:00:00] A84: Dutch Defence: 2 c4 Miscellaneous.} 7. gxf5 {[%emt 0:00:00]} exf5 {[%emt 0:00:00]} 8. Qc2 {[%emt 0:01:07]} O-O {[%emt 0:01:29] [#] Black is slightly better.} 9. Bxf5 $146 {[%emt 0:06:38]} ({White should try} 9. a3 $15) ({Predecessor:} 9. cxd5 Nxd5 10. Bc4 Kh8 11. Nge2 Be6 12. Qb3 Nd7 13. Bxd5 Bxd5 14. Nxd5 cxd5 15. Qxd5 {½-½ (44) Abrashkin,B (2407)-Tabatabaei,M (2613) Chess.com INT 2021}) 9... Bxf5 {[%emt 0:00:40]} (9... dxc4 $17 {Strongly threatening ...Na6.} 10. a3 Bxf5 11. Qxf5 Qd7 12. Qxd7 Nbxd7) 10. Qxf5 $15 {[%emt 0:00:08]} Kh8 {[%emt 0:12:02][%cal Of6e4]} 11. Nf3 {[%emt 0:17:55]} Ne4 {[%emt 0:11:08] Prevents Ng5.} 12. Qg4 {[%emt 0:08:29]} Qf6 {[%emt 0:22:12]} (12... Nxc3 $11 {remains equal.} 13. bxc3 Qf6) 13. Nxe4 $16 {[%emt 0:07:52]} dxe4 {[%emt 0:00:23] [#]} (13... Qxf3 $2 14. Qxf3 Bb4+ 15. Ke2 Rxf3 16. Kxf3 $18) 14. Ng5 {[%emt 0:00:33]} Qxf2+ {[%emt 0:08:54]} 15. Kd1 {[%emt 0:00:17][%cal Be1d1,Bd1c2,Bc2b1][%mdl 32]} Be7 {[%emt 0:19:37] And now ...Bxg5 would win.} 16. Ne6 $40 {[%emt 0:11:26][%csl Ge6][%cal Rg4g7][%mdl 128] White is up to no good.} Qf7 {[%emt 0:05:48][%mdl 8192] White stays focused until the end.} (16... Qf3+ $2 17. Qxf3 Rxf3 18. Nc7 $18) (16... Rf7 $14) 17. Nxf8 $18 {[%emt 0:03:22]} Bxf8 {[%emt 0:00:02]} 18. Qc8 {[%emt 0:24:08] Black must now prevent Ke1.} ({Much less strong is} 18. Qxe4 $6 Na6 19. Bd2 Re8 $18) 18... Nd7 {[%emt 0:06:44]} 19. Qxa8 {[%emt 0:00:13]} Qf3+ {[%emt 0:00:03] [#]} 20. Kc2 $1 {[%emt 0:00:39]} Qxh1 {[%emt 0:00:31]} 21. Qxb7 {[%emt 0:08:39]} Qf1 {[%emt 0:01:41][%csl Ge4][%cal Rf1d3]} 22. Qb3 {[%emt 0:01:34] Prevents Qd3+.} Nb6 {[%emt 0:06:51]} 23. c5 {[%emt 0:00:47]} Nd5 {[%emt 0:00:31]} 24. a3 {[%emt 0:00:58]} ({Better is} 24. Kb1 $18) 24... a5 $16 {[%emt 0:01:18][%cal Oa5a4] aiming for ...a4!} 25. Kb1 {[%emt 0:00:35]} h5 {[%emt 0:01:32]} 26. Qc2 {[%emt 0:02:41]} Nxe3 $2 {[%emt 0:01:16]} (26... Be7 $16 {is tougher.} 27. Ka2 (27. Qxe4 Bg5 $14) 27... Qf7) 27. Qxe4 $18 {[%emt 0:00:13]} Nd5 {[%emt 0:00:36]} 28. Qc2 {[%emt 0:04:31]} Ne3 {[%emt 0:00:28]} 29. Qe4 {[%emt 0:00:35][%csl LRc6,LRe3]} Nd5 {[%emt 0:00:02]} 30. Qc2 {[%emt 0:00:05]} Ne3 $1 {[%emt 0:00:03]} 31. Qb3 {[%emt 0:00:31]} Nf5 {[%emt 0:01:24]} (31... Nd5 32. Qc2) 32. Qf7 {[%emt 0:01:02][%csl LRf8,LRh5]} Be7 {[%emt 0:00:39]} 33. Ka2 {[%emt 0:00:30]} Bf6 {[%emt 0:00:16] [#]} 34. Bg5 $1 {[%emt 0:00:40][%mdl 512]} Qd3 {[%emt 0:00:34]} (34... Qg2 35. Bxf6) 35. Bxf6 {[%emt 0:00:11] White mates.} gxf6 {[%emt 0:00:01]} 36. Rg1 {[%emt 0:00:26][%csl Gf7][%cal Rg1g8]} Nxd4 {[%emt 0:01:10]} 37. Rg8# {Weighted Error Value: White=0.50/Black=0.69} 1-0

[Event "German Bundesliga 2021-22"]
[Site "Germany"]
[Date "2022.04.09"]
[Round "3.5"]
[White "Predojevic, Borki"]
[Black "Berchtenbreiter, Maximilian"]
[Result "1/2-1/2"]
[ECO "B11"]
[WhiteElo "2585"]
[BlackElo "2506"]
[Annotator "TA"]
[PlyCount "76"]
[EventDate "2022.03.05"]
[EventType "team-tourn"]
[EventCountry "GER"]
[SourceTitle "playchess.com"]
[Source "ChessBase"]
[SourceQuality "1"]
[TimeControl "40/5400+30:1800+30"]

{[%evp 10,76,7,16,14,11,56,51,53,42,56,30,61,15,27,18,23,23,25,25,28,2,6,0,0,0,0,0,0,7,0,0,0,-14,19,14,5,-22,-27,-57,-71,-81,-23,-87,-77,-78,-53,-53,-53,-82,-91,-82,-20,-28,20,-77,-22,-22,-14,-14,-14,-14,-10,-14,-14,-8,0,-4,0]} 1. e4 {[%emt 0:00:00]} c6 {[%emt 0:00:00]} 2. Nc3 {[%emt 0:00:00]} d5 {[%emt 0:00:00]} 3. Nf3 {[%emt 0:00:00]} Bg4 {[%emt 0:00:00]} 4. h3 {[%emt 0:00:00]} Bxf3 {[%emt 0:00:00]} 5. Qxf3 {[%emt 0:00:00]} e6 {[%emt 0:00:00]} 6. Be2 {[%emt 0:00:00]} Nf6 {[%emt 0:00:00] B11: Caro-Kann: Two Knights Variation.} 7. O-O {[%emt 0:00:00]} Bb4 {[%emt 0:03:55]} 8. e5 {[%emt 0:28:00]} Nfd7 {[%emt 0:00:09] White is slightly better.} 9. d4 {[%emt 0:00:10] [#]} Be7 $146 {[%emt 0:14:00]} ({Predecessor:} 9... a6 10. Qg3 g6 11. Nb1 Be7 12. Nd2 c5 13. c3 Nc6 14. Nf3 Qb6 15. Rd1 h6 {½-½ (41) Hansen,T (2439)-Peralta,F (2603) Roquetas de Mar 2011}) 10. Rd1 {[%emt 0:23:49]} (10. Qg3 $5 {[%cal Rg3g7]} g6 11. a3 $16) 10... g6 {[%emt 0:10:19]} 11. Nb1 {[%emt 0:06:10] &Bianco is more active.} (11. Qg3 $14 {is more appropriate.}) 11... c5 $11 {[%emt 0:03:08]} 12. c3 {[%emt 0:00:08]} Nc6 {[%emt 0:00:08]} 13. Na3 {[%emt 0:01:26]} a6 {[%emt 0:01:29]} 14. Nc2 {[%emt 0:00:55]} Rc8 {[%emt 0:01:03]} 15. Bd3 {[%emt 0:01:54]} Bg5 {[%emt 0:14:31]} 16. Bxg5 {[%emt 0:07:29]} Qxg5 {[%emt 0:00:03]} 17. g3 {[%emt 0:00:05]} h5 {[%emt 0:14:53]} 18. h4 {[%emt 0:01:07]} Qh6 {[%emt 0:00:08]} 19. Kg2 {[%emt 0:09:12]} O-O {[%emt 0:05:00]} 20. Re1 {[%emt 0:05:46]} Kg7 {[%emt 0:01:17]} 21. Rad1 {[%emt 0:00:36]} f6 {[%emt 0:11:33]} 22. exf6+ {[%emt 0:03:32]} Nxf6 {[%emt 0:00:08]} (22... Rxf6 {is interesting.} 23. Qe3 cxd4 24. Qxh6+ Kxh6 25. Nxd4 e5) 23. Qe3 {[%emt 0:01:37]} ({Don't go for} 23. dxc5 $2 Ng4 24. Qe2 Rxf2+ 25. Qxf2 Nxf2 26. Kxf2 Re8 $19) (23. Rxe6 {feels hotter.} c4 24. Ne3 cxd3 25. Nxd5 Nxd5 26. Qxd5 Rf7 27. Qe4) 23... Qxe3 {[%emt 0:00:20]} 24. fxe3 {[%emt 0:00:09]} c4 {[%emt 0:07:07]} 25. Be2 {[%emt 0:00:04]} Rc7 {[%emt 0:05:12]} (25... Rce8 $17) 26. Rf1 {[%emt 0:03:13]} (26. Bf3 $11) 26... Rcf7 $17 {[%emt 0:00:17]} 27. Rf4 {[%emt 0:03:13]} Ne7 {[%emt 0:01:03]} 28. Bf3 {[%emt 0:05:05]} Nf5 {[%emt 0:00:10]} 29. Re1 {[%emt 0:00:17]} (29. e4 $2 dxe4 30. Be2 (30. Bxe4 $2 Nxe4 31. Rxe4 Nxg3 $19) 30... b5 $19) 29... Nd6 {[%emt 0:00:20] Pair of Knights!} 30. Re2 {[%emt 0:00:05]} Kh6 {[%emt 0:04:08]} ({Black should try} 30... Rg8 $17) 31. Na3 $11 {[%emt 0:00:25]} Rg8 {[%emt 0:02:12]} (31... b5 $142) 32. Rf2 {[%emt 0:00:24]} (32. e4 $1 $11 dxe4 33. Bxe4) 32... g5 {[%emt 0:01:22]} ({Black should play} 32... Kg7 $17) 33. hxg5+ {[%emt 0:00:30] The position is equal.} Rxg5 {[%emt 0:01:09] White must now prevent ...Nf5.} (33... Kxg5 {is more complex.} 34. Bxh5 Kxh5 35. Rxf6 Rxg3+ 36. Kxg3 Ne4+) 34. Bxd5 $1 {[%emt 0:01:00]} Nxd5 {[%emt 0:00:27]} 35. Rxf7 {[%emt 0:00:04]} Nxe3+ {[%emt 0:00:13]} 36. Kh3 {[%emt 0:00:21] [#] R2f6+ is the strong threat.} Nxf7 {[%emt 0:02:00]} 37. Rxf7 {[%emt 0:00:03]} b5 {[%emt 0:00:16]} ({But not} 37... Nf5 38. Rxb7 Rxg3+ 39. Kh2 $14) 38. Rf3 {[%emt 0:00:13]} Ng4 {[%emt 0:01:05] Weighted Error Value: White=0.17 (very precise) /Black=0.17 (very precise)} 1/2-1/2